bitfinex-derivatives/quotes_BTCF0:USTF0_20250814
["timestamp","ask_amount","ask_price","bid_price","bid_amount"]
[1755152100895,1.56976028,121860.0,121850.0,0.001]
[1755152102686,1.64092316,121860.0,121850.0,0.001]
[1755152103295,1.64092316,121860.0,121850.0,0.0830317]
[1755152103498,1.64092316,121860.0,121850.0,0.001]
[1755152104095,1.64060802,121860.0,121850.0,0.001]
[1755152104998,1.64054707,121860.0,121850.0,0.001]
[1755152105197,0.0820322,121850.0,121840.0,0.76156]
[1755152105501,0.0820389,121840.0,121830.0,0.1660851]
[1755152105695,1.0707392,121840.0,121830.0,0.1660851]
[1755152106603,1.1507392,121840.0,121830.0,0.1660851]
[1755152106901,1.1507392,121840.0,121830.0,0.2007951]
[1755152107496,1.1507392,121840.0,121830.0,0.1680851]
[1755152107693,1.20944064,121840.0,121830.0,0.004]
[1755152107898,1.20950159,121840.0,121830.0,0.004]
[1755152108292,1.20950159,121840.0,121830.0,0.006]
[1755152108498,1.96700064,121840.0,121830.0,0.006]
[1755152109498,1.96700064,121840.0,121830.0,0.03166236]
[1755152111608,0.2322658,121830.0,121820.0,0.0870525]
[1755152111807,1.19950849,121830.0,121820.0,0.0870525]
[1755152112310,1.19950849,121830.0,121820.0,0.001]
[1755152112311,1.95710849,121830.0,121820.0,0.001]
[1755152112511,1.95710849,121830.0,121810.0,0.002]
[1755152112512,0.2322703,121820.0,121810.0,0.002]
[1755152112716,1.1807506,121820.0,121810.0,0.002]
[1755152113009,1.9383106,121820.0,121810.0,0.002]
[1755152113308,0.1420879,121810.0,121800.0,0.002]
[1755152113508,1.17081915,121810.0,121800.0,0.002]
[1755152113899,0.1049546,121800.0,121790.0,0.00206363]
[1755152114203,0.2322914,121790.0,121780.0,0.001]
[1755152114403,0.2322981,121780.0,121770.0,0.002]
[1755152114611,1.1907784,121780.0,121770.0,0.002]
[1755152115000,1.07066565,121780.0,121770.0,0.0061]
[1755152115201,1.21431337,121780.0,121770.0,0.0061]
[1755152115408,1.99054441,121780.0,121770.0,0.0061]
[1755152115608,0.1198956,121770.0,121760.0,0.002]
[1755152115913,1.1807859,121770.0,121760.0,0.002]
[1755152116208,0.1400058,121740.0,121730.0,0.001]
[1755152116409,0.97647904,121740.0,121730.0,0.0831126]
[1755152116613,1.05864569,121740.0,121730.0,0.2328726]
[1755152116819,1.05864569,121740.0,121730.0,0.1990624]
[1755152117210,1.53632599,121740.0,121730.0,0.001]
[1755152117416,1.53632599,121740.0,121730.0,0.0831119]
[1755152117709,1.60302489,121740.0,121730.0,0.001]
[1755152118008,1.60296394,121740.0,121730.0,0.001]
[1755152118215,1.60296394,121740.0,121730.0,0.0101]
[1755152118216,2.36068394,121740.0,121730.0,0.0101]
[1755152119209,0.93317794,121740.0,121730.0,0.0922118]
[1755152119509,1.13534399,121740.0,121730.0,0.2419718]
[1755152119706,1.13534399,121740.0,121730.0,0.2378718]
[1755152119907,1.13534399,121740.0,121730.0,0.1693518]
[1755152120111,1.13534399,121740.0,121730.0,0.2378718]
[1755152120310,0.96838985,121740.0,121730.0,0.2193718]
[1755152120516,0.06675985,121740.0,121730.0,1.6376801]
[1755152120811,0.3608,121760.0,121740.0,0.3960747]
[1755152121012,0.3608,121760.0,121750.0,1.4673786]
[1755152121314,0.5480015,121760.0,121750.0,0.9896983]
[1755152121615,1.38148825,121760.0,121750.0,0.0820983]
[1755152121812,0.2323183,121750.0,121740.0,0.87379]
[1755152122121,0.142135,121740.0,121730.0,0.2861684]
[1755152122318,0.593125,121740.0,121730.0,0.9803992]
[1755152122612,0.593125,121740.0,121730.0,0.2040592]
[1755152123015,1.0708053,121740.0,121730.0,0.006]
[1755152123310,1.9386853,121740.0,121730.0,0.006]
[1755152123512,1.9386853,121740.0,121730.0,0.01884147]
[1755152123720,1.9386853,121740.0,121730.0,0.01884153]
[1755152125613,1.1808053,121740.0,121730.0,0.01884153]
[1755152125812,1.9386453,121740.0,121730.0,0.01884153]
[1755152126414,1.1808053,121740.0,121730.0,0.01884153]
[1755152126611,1.9387653,121740.0,121730.0,0.01884189]
[1755152126810,1.1808053,121740.0,121730.0,0.01884189]
[1755152127012,0.2466829,121730.0,121720.0,0.002]
[1755152127211,1.2151632,121730.0,121720.0,0.002]
[1755152129315,1.4964429,121730.0,121720.0,0.002]
[1755152129706,1.9740032,121730.0,121720.0,0.002]
[1755152130628,1.9754832,121730.0,121720.0,0.002]
[1755152131224,1.9768032,121730.0,121720.0,0.002]
[1755152131617,1.9778032,121730.0,121720.0,0.002]
[1755152131915,0.0821197,121720.0,121710.0,0.002]
[1755152132109,1.09517,121720.0,121710.0,0.002]
[1755152132509,1.09517,121720.0,121710.0,0.0841265]
[1755152132722,1.85717,121720.0,121710.0,0.0752]
[1755152133013,1.85717,121720.0,121710.0,0.04192]
[1755152133216,1.85717,121720.0,121710.0,0.1240464]
[1755152133522,1.85717,121720.0,121710.0,0.004]
[1755152134317,1.85717,121720.0,121710.0,0.005]
[1755152136723,1.09517,121720.0,121710.0,0.005]
[1755152136913,1.85825,121720.0,121710.0,0.005]
[1755152137916,1.85825,121720.0,121710.0,0.0171388]
[1755152138819,1.85825,121720.0,121710.0,0.005]
[1755152139125,1.85825,121720.0,121710.0,0.02999113]
[1755152139626,1.96752904,121720.0,121710.0,0.02999113]
[1755152140010,1.20444904,121720.0,121710.0,0.02999113]
[1755152140216,1.85801,121720.0,121710.0,0.02999113]
[1755152140518,0.2466964,121710.0,121700.0,0.00210584]
[1755152140820,1.1951767,121710.0,121700.0,0.00210584]
[1755152141213,1.99235697,121710.0,121700.0,0.002]
[1755152141926,1.99235697,121710.0,121700.0,1e-07]
[1755152142131,0.246703,121700.0,121690.0,0.00518]
[1755152142319,1.2051833,121700.0,121690.0,0.00518]
[1755152142519,1.3112133,121700.0,121690.0,0.00108]
[1755152142725,1.24224298,121700.0,121690.0,0.00108]
[1755152143422,2.00560298,121700.0,121690.0,0.041]
[1755152143729,1.24224298,121700.0,121690.0,0.042]
[1755152143922,2.00568298,121700.0,121690.0,0.042]
[1755152144123,2.00568298,121700.0,121690.0,0.00208]
[1755152144627,2.07583992,121700.0,121690.0,0.00208]
[1755152144821,0.727503,121700.0,121690.0,0.00208]
[1755152145025,0.567943,121700.0,121690.0,0.2507702]
[1755152145414,0.3608,121700.0,121690.0,0.2527702]
[1755152145618,0.39490027,121710.0,121700.0,0.2486836]
[1755152146127,0.0821268,121710.0,121700.0,0.5598463]
[1755152146520,1.12511132,121720.0,121710.0,0.1325168]
[1755152146726,1.30700812,121720.0,121700.0,0.1417733]
[1755152147034,1.08936372,121710.0,121700.0,0.16855]
[1755152147327,0.6104968,121710.0,121700.0,0.16855]
[1755152147529,1.08936372,121710.0,121700.0,0.2547835]
[1755152147725,0.6104968,121710.0,121700.0,0.2547835]
[1755152147928,0.5709368,121710.0,121700.0,0.2547835]
[1755152148132,0.4636868,121710.0,121700.0,0.2547835]
[1755152148329,0.3608,121710.0,121700.0,1.09697842]
[1755152148532,0.5250347,121730.0,121710.0,0.4950512]
[1755152148721,0.08512,121720.0,121710.0,0.97391812]
[1755152148922,0.08512,121720.0,121710.0,1.1784845]
[1755152149125,0.08512,121720.0,121710.0,1.5428045]
[1755152149321,0.49459,121720.0,121710.0,0.3287978]
[1755152149522,0.5422,121720.0,121710.0,0.3287978]
[1755152149724,1.04679692,121720.0,121710.0,0.2466713]
[1755152149924,1.08635692,121720.0,121710.0,0.16455]
[1755152150124,1.08935692,121720.0,121710.0,0.16555]
[1755152150428,1.08935692,121720.0,121710.0,0.08931]
[1755152150626,1.08935692,121720.0,121710.0,0.06631]
[1755152150825,1.10800397,121720.0,121710.0,0.001]
[1755152151625,1.87348397,121720.0,121710.0,0.001]
[1755152152032,1.99348397,121720.0,121710.0,1e-07]
[1755152152224,1.98336397,121720.0,121710.0,1e-07]
[1755152152419,1.98336397,121720.0,121710.0,0.02540196]
[1755152153222,0.57456705,121720.0,121710.0,0.02540196]
[1755152153421,0.63913705,121720.0,121710.0,0.17535196]
[1755152154425,0.62913705,121720.0,121710.0,0.27407846]
[1755152154633,0.62913705,121720.0,121710.0,0.19195196]
[1755152154825,1.10800397,121720.0,121710.0,0.19195196]
[1755152155225,0.62913705,121720.0,121710.0,0.19195196]
[1755152155422,0.58957705,121720.0,121710.0,1.03967846]
[1755152155628,0.48232705,121720.0,121710.0,0.19195196]
[1755152155821,1.11195806,121720.0,121710.0,0.19195196]
[1755152156024,1.11195806,121720.0,121710.0,0.27407846]
[1755152156227,1.07019806,121720.0,121710.0,0.27407846]
[1755152156426,0.46368,121720.0,121710.0,1.03991846]
[1755152156630,0.3638,121720.0,121710.0,0.91726538]
[1755152156831,0.4459197,121720.0,121710.0,1.68310538]
[1755152157030,0.4459197,121720.0,121710.0,0.43839846]
[1755152157234,0.4459197,121720.0,121710.0,1.20463846]
[1755152157729,0.46429179,121720.0,121710.0,1.04994949]
[1755152157931,0.4459197,121720.0,121710.0,1.04994949]
[1755152158833,0.5236497,121720.0,121710.0,1.04994949]
[1755152159034,0.5724097,121720.0,121710.0,1.05008793]
[1755152159236,0.6141697,121720.0,121710.0,1.0404569]
[1755152159534,0.5724097,121720.0,121710.0,1.0404569]
[1755152159832,0.5458997,121720.0,121710.0,1.04964803]
[1755152160033,0.4631297,121720.0,121710.0,1.04964803]
[1755152160429,0.003,121720.0,121710.0,1.68296382]
[1755152160728,0.0821019,121750.0,121740.0,0.11978]
[1755152160933,0.0821019,121750.0,121740.0,1.5026589]
[1755152161136,0.4429019,121750.0,121740.0,1.18819198]
[1755152161334,1.04825882,121750.0,121740.0,0.17608588]
[1755152161526,1.09001882,121750.0,121740.0,0.01269588]
[1755152161727,1.20001882,121750.0,121740.0,0.01269588]
[1755152161926,1.21833795,121750.0,121740.0,0.02553539]
[1755152162133,1.10833795,121750.0,121740.0,0.21292149]
[1755152162337,0.64888082,121750.0,121740.0,0.27103149]
[1755152162521,0.4458994,121750.0,121740.0,1.6670589]
[1755152162927,0.4508994,121750.0,121740.0,1.02391198]
[1755152163334,0.4508994,121750.0,121740.0,1.18831198]
[1755152163536,0.3688,121750.0,121740.0,1.18835198]
[1755152163734,0.008,121750.0,121740.0,1.18835198]
[1755152163935,0.4508994,121750.0,121740.0,1.18840896]
[1755152164530,1.09801632,121750.0,121740.0,0.17606286]
[1755152164835,0.6191494,121750.0,121740.0,1.02400896]
[1755152165238,0.5773894,121750.0,121740.0,1.02400896]
[1755152165430,0.5508794,121750.0,121740.0,1.02396896]
[1755152165640,0.4681094,121750.0,121740.0,1.02396896]
[1755152165830,0.3688,121750.0,121740.0,0.25816896]
[1755152166030,0.3637,121770.0,121760.0,0.0820927]
[1755152166234,0.3637,121770.0,121760.0,1.43709248]
[1755152166432,0.445786,121770.0,121760.0,0.19242556]
[1755152166735,1.8637,121770.0,121760.0,0.95830556]
[1755152167139,1.949786,121770.0,121760.0,0.95830556]
[1755152167432,1.949786,121770.0,121760.0,1.03554048]
[1755152167433,1.5099,121770.0,121760.0,1.03554048]
[1755152167625,0.007,121770.0,121760.0,2.16222048]
[1755152167833,0.002,121780.0,121770.0,0.179746]
[1755152168034,1.502,121780.0,121770.0,0.83552578]
[1755152168336,0.002,121790.0,121780.0,0.1797392]
[1755152168529,0.002,121790.0,121780.0,1.19630297]
[1755152168732,0.002,121790.0,121780.0,1.96278297]
[1755152168939,0.002,121790.0,121780.0,1.48391605]
[1755152169136,0.002,121790.0,121780.0,1.96278297]
[1755152169544,0.002,121790.0,121780.0,1.96318297]
[1755152170341,0.002,121790.0,121780.0,1.97318297]
[1755152171140,0.002,121790.0,121780.0,1.61238297]
[1755152171341,0.002,121790.0,121780.0,0.84550297]
[1755152171536,0.001,121800.0,121790.0,0.1797326]
[1755152171739,0.002,121820.0,121810.0,0.1797191]
[1755152171941,0.002,121820.0,121810.0,1.79873888]
[1755152172138,0.002,121820.0,121810.0,1.39624288]
[1755152172338,0.002,121820.0,121810.0,2.16304288]
[1755152173344,0.002,121820.0,121810.0,2.16904288]
[1755152173737,0.002,121820.0,121810.0,2.17404288]
[1755152174745,0.0840523,121820.0,121810.0,1.20724288]
[1755152175046,0.0840523,121820.0,121810.0,1.97356288]
[1755152175747,0.1173723,121820.0,121810.0,0.96975196]
[1755152175945,0.002,121820.0,121810.0,1.20724288]
[1755152176243,1.502,121820.0,121810.0,2.16860288]
[1755152177446,0.002,121820.0,121810.0,2.16860288]
[1755152178746,0.002,121820.0,121810.0,2.17038079]
[1755152178942,0.3628,121840.0,121830.0,0.0820457]
[1755152179144,0.002,121840.0,121830.0,1.79802202]
[1755152179349,0.002,121840.0,121830.0,1.96218202]
[1755152179645,0.04376,121840.0,121830.0,0.1923951]
[1755152179843,0.186319,121840.0,121830.0,0.8366394]
[1755152180033,1.02598592,121840.0,121830.0,0.0957353]
[1755152180235,0.547119,121840.0,121830.0,0.1146359]
[1755152180443,0.547119,121840.0,121830.0,0.8807159]
[1755152180650,1.02598592,121840.0,121830.0,0.76708]
[1755152181048,1.02598592,121840.0,121830.0,0.8491259]
[1755152181347,1.02598592,121840.0,121830.0,0.001]
[1755152181543,1.02598592,121840.0,121830.0,0.76748]
[1755152181753,0.1843326,121820.0,121810.0,0.0041]
[1755152181946,1.38479952,121820.0,121810.0,0.76656]
[1755152182246,0.1843393,121810.0,121800.0,0.7677008]
[1755152182444,0.1843595,121780.0,121770.0,0.03159]
[1755152182749,0.1843663,121770.0,121760.0,0.0840892]
[1755152182948,0.5451663,121770.0,121760.0,0.8522492]
[1755152183144,0.5451663,121770.0,121760.0,0.8649502]
[1755152183441,0.5451663,121770.0,121760.0,0.8964602]
[1755152183442,0.5452271,121770.0,121760.0,0.8964602]
[1755152183642,0.5452271,121770.0,121760.0,0.014701]
[1755152183847,0.5452271,121770.0,121760.0,0.8648339]
[1755152184040,0.5452271,121770.0,121760.0,0.8964539]
[1755152184247,0.5452271,121770.0,121760.0,0.9228139]
[1755152184442,0.5452271,121770.0,121760.0,0.1304139]
[1755152184649,0.5452271,121770.0,121760.0,0.8981739]
[1755152185454,0.60948664,121770.0,121760.0,0.8981739]
[1755152186354,0.60948664,121770.0,121760.0,0.9001739]
[1755152186949,0.545227,121770.0,121760.0,1.44254082]
[1755152187346,0.4631408,121770.0,121760.0,1.44254082]
[1755152189548,0.4026208,121770.0,121760.0,1.44664082]
[1755152189749,6.08e-05,121770.0,121760.0,1.44564082]
[1755152189951,6.08e-05,121770.0,121760.0,1.60988882]
[1755152190153,6.08e-05,121770.0,121760.0,0.83902882]
[1755152190549,6.08e-05,121770.0,121760.0,1.60586882]
[1755152190951,0.2462116,121800.0,121770.0,0.0820807]
[1755152190952,0.40214,121800.0,121770.0,0.0820807]
[1755152191256,0.45914,121800.0,121790.0,0.65605962]
[1755152191443,0.541206,121800.0,121790.0,0.0947737]
[1755152191845,1.38087292,121800.0,121790.0,0.012701]
[1755152192050,1.41008991,121800.0,121790.0,0.012701]
[1755152192246,0.93122299,121800.0,121790.0,0.0947737]
[1755152192749,0.902006,121800.0,121790.0,0.0947737]
[1755152193059,0.902006,121800.0,121790.0,0.1509937]
[1755152193249,0.903006,121800.0,121790.0,0.1509937]
[1755152193450,0.96786025,121800.0,121790.0,0.1509937]
[1755152193653,0.76394,121800.0,121790.0,0.66876062]
[1755152193859,0.903006,121800.0,121790.0,0.1509937]
[1755152194059,0.903006,121800.0,121790.0,0.012701]
[1755152194360,1.38187292,121800.0,121790.0,0.012701]
[1755152194656,0.903006,121800.0,121790.0,0.0947737]
[1755152194854,0.903006,121800.0,121790.0,0.1263937]
[1755152195054,0.903006,121800.0,121790.0,0.60526062]
[1755152195247,0.82094,121800.0,121790.0,0.62986062]
[1755152195448,0.76394,121800.0,121790.0,0.66876062]
[1755152195659,0.76394,121800.0,121790.0,1.43680062]
[1755152195858,0.76394,121800.0,121790.0,0.66876062]
[1755152196058,0.76394,121800.0,121790.0,1.43684062]
[1755152196454,0.76394,121800.0,121790.0,1.43697217]
[1755152196656,0.3618,121800.0,121790.0,1.60118017]
[1755152196857,0.3618,121800.0,121790.0,1.60528017]
[1755152197360,0.46014,121800.0,121790.0,1.60528017]
[1755152197757,0.46014,121800.0,121790.0,1.44107217]
[1755152198457,0.46014,121800.0,121790.0,0.67299217]
[1755152198757,0.5422059,121800.0,121790.0,0.09900525]
[1755152199062,0.9030059,121800.0,121790.0,0.78441255]
[1755152199660,0.9030059,121800.0,121790.0,0.78441428]
[1755152199964,1.38187282,121800.0,121790.0,0.78449428]
[1755152200357,0.9030059,121800.0,121790.0,0.78449428]
[1755152201160,0.9030059,121800.0,121790.0,0.01693428]
[1755152201376,1.51187282,121800.0,121790.0,0.01693428]
[1755152201656,0.1804261,121770.0,121760.0,0.3865818]
[1755152201854,0.5412261,121770.0,121760.0,0.90434872]
[1755152202059,0.3608,121770.0,121760.0,1.67170872]
[1755152202366,0.3608,121770.0,121760.0,1.67572872]
[1755152202758,0.3608,121770.0,121760.0,1.84205672]
[1755152202957,0.3608,121770.0,121760.0,1.83995672]
[1755152203559,0.3608,121770.0,121760.0,1.3610898]
[1755152203762,0.3608,121770.0,121760.0,1.83995672]
[1755152205456,0.3608,121780.0,121770.0,0.0820862]
[1755152205656,0.3608,121780.0,121770.0,0.65607312]
[1755152206658,0.3608,121780.0,121770.0,1.42275312]
[1755152207169,0.5412194,121780.0,121770.0,0.1772062]
[1755152207363,0.5412194,121780.0,121770.0,0.8802662]
[1755152207562,0.45914,121780.0,121770.0,0.8802662]
[1755152207765,0.45914,121780.0,121770.0,1.38373312]
[1755152207965,0.45914,121780.0,121770.0,1.42263312]
[1755152208162,0.40214,121780.0,121770.0,1.42263312]
[1755152208362,0.40214,121780.0,121770.0,1.42315312]
[1755152209169,0.3608,121780.0,121770.0,1.42315312]
[1755152209465,0.5412194,121780.0,121770.0,0.8493262]
[1755152210064,0.5412194,121780.0,121770.0,0.8809462]
[1755152210365,0.1804261,121770.0,121760.0,0.0880929]
[1755152210557,0.5412261,121770.0,121760.0,0.9114329]
[1755152210763,0.5412261,121770.0,121760.0,1.42919982]
[1755152211063,0.5412261,121770.0,121760.0,1.43882702]
[1755152211677,0.5412261,121770.0,121760.0,0.9599601]
[1755152212468,0.5412261,121770.0,121760.0,0.67170702]
[1755152212670,0.6051761,121770.0,121760.0,1.43866702]
[1755152212965,0.4428861,121770.0,121760.0,1.50829702]
[1755152213171,0.5412261,121770.0,121760.0,0.74129702]
[1755152213366,0.6051761,121770.0,121760.0,1.50837702]
[1755152213670,0.6051761,121770.0,121760.0,0.89269345]
[1755152213863,0.6051761,121770.0,121760.0,0.97888635]
[1755152214058,0.6051761,121770.0,121760.0,0.79005625]
[1755152214258,0.6051761,121770.0,121760.0,0.87214915]
[1755152214461,0.6051761,121770.0,121760.0,0.87214917]
[1755152214872,0.6051761,121770.0,121760.0,0.79005627]
[1755152215073,0.6051761,121770.0,121760.0,0.87214917]
[1755152215273,0.6051761,121770.0,121760.0,0.90582917]
[1755152215565,0.6051761,121770.0,121760.0,0.95264917]
[1755152215773,0.6051761,121770.0,121760.0,0.95248917]
[1755152216368,0.6051761,121770.0,121760.0,0.92734917]
[1755152217574,0.6051761,121770.0,121760.0,0.95248917]
[1755152217773,0.6051761,121770.0,121760.0,0.97746917]
[1755152218679,0.6051761,121770.0,121760.0,0.97946917]
[1755152219573,0.6051761,121770.0,121760.0,0.99591917]
[1755152219776,0.6051761,121770.0,121760.0,1.03541917]
[1755152219978,0.6051761,121770.0,121760.0,1.03341917]
[1755152220277,0.6051761,121770.0,121760.0,0.26657917]
[1755152220479,0.52309,121770.0,121760.0,1.51124609]
[1755152220784,0.6051761,121770.0,121760.0,1.51324609]
[1755152221877,0.6051761,121770.0,121760.0,1.50914609]
[1755152222276,0.52309,121770.0,121760.0,1.50914609]
[1755152222878,0.6051761,121770.0,121760.0,1.50914609]
[1755152223180,0.6051761,121770.0,121760.0,1.03027917]
[1755152223373,0.52309,121770.0,121760.0,1.03027917]
[1755152224076,0.52309,121770.0,121760.0,1.50914609]
[1755152224279,0.46609,121770.0,121760.0,0.74334609]
[1755152224579,0.46609,121770.0,121760.0,1.50966609]
[1755152224880,0.49793,121770.0,121760.0,1.50966609]
[1755152225077,0.52373,121770.0,121760.0,1.50966609]
[1755152225278,0.52373,121770.0,121760.0,1.50966598]
[1755152225669,0.52373,121770.0,121760.0,1.03079906]
[1755152225879,0.40065,121770.0,121760.0,1.03079906]
[1755152226080,0.40065,121770.0,121760.0,1.50966598]
[1755152226275,0.3608,121770.0,121760.0,1.50966598]
[1755152226679,0.3608,121770.0,121760.0,1.50938598]
[1755152226881,0.3608,121770.0,121760.0,1.50930598]
[1755152228480,0.3608,121770.0,121760.0,1.03043906]
[1755152228670,0.3608,121770.0,121760.0,1.50930598]
[1755152229182,0.3608,121770.0,121760.0,1.56821913]
[1755152229878,0.3608,121770.0,121760.0,1.50930598]
[1755152230273,0.3608,121770.0,121760.0,1.56821913]
[1755152230985,0.44439,121790.0,121780.0,0.06523]
[1755152231171,0.44439,121790.0,121780.0,1.50281248]
[1755152231481,0.40065,121790.0,121780.0,1.50281248]
[1755152232384,0.40065,121790.0,121780.0,1.50381248]
[1755152233486,0.4827226,121790.0,121780.0,1.50381248]
[1755152233678,0.5403626,121790.0,121780.0,1.50381248]
[1755152233878,0.4749,121790.0,121780.0,1.50381248]
[1755152234082,0.4749,121790.0,121780.0,1.02494556]
[1755152234282,0.52412,121790.0,121780.0,1.50381248]
[1755152234485,0.6061927,121790.0,121780.0,1.50381248]
[1755152234685,0.6061927,121790.0,121780.0,1.02494556]
[1755152235284,0.40065,121810.0,121800.0,0.16355]
[1755152235484,0.3608,121820.0,121800.0,1.56832678]
[1755152235683,0.3608,121820.0,121810.0,1.48963612]
[1755152235883,0.40065,121820.0,121810.0,1.50243228]
[1755152236080,0.4827024,121820.0,121810.0,1.02356536]
[1755152236387,0.52412,121820.0,121810.0,1.02356536]
[1755152236787,0.52512,121820.0,121810.0,1.02356536]
[1755152237181,0.52512,121820.0,121810.0,1.02156536]
[1755152237381,0.6071728,121820.0,121810.0,1.02156536]
[1755152237595,0.6071728,121820.0,121810.0,0.85969536]
[1755152237892,0.52512,121820.0,121810.0,0.99156536]
[1755152238092,0.6071728,121820.0,121810.0,1.47043228]
[1755152238294,0.6071728,121820.0,121810.0,0.99156536]
[1755152238492,0.6071728,121820.0,121810.0,0.95206536]
[1755152239293,0.6061728,121820.0,121810.0,0.96260536]
[1755152239491,0.6061728,121820.0,121810.0,0.11574616]
[1755152239686,1.08503972,121820.0,121810.0,0.01683616]
[1755152239893,1.08503972,121820.0,121810.0,0.86337566]
[1755152240091,1.1504478,121820.0,121810.0,0.01683616]
[1755152240285,0.67158088,121820.0,121810.0,0.78131616]
[1755152240486,1.2604478,121820.0,121810.0,0.004]
[1755152240798,1.2604478,121820.0,121810.0,0.76836]
[1755152240992,1.2604478,121820.0,121810.0,0.004]
[1755152241896,0.082073,121790.0,121780.0,0.3451389]
[1755152242098,0.606193,121790.0,121780.0,1.02277902]
[1755152242398,0.606193,121790.0,121780.0,0.25845902]
[1755152242599,0.606193,121790.0,121780.0,1.02281902]
[1755152242902,0.606193,121790.0,121780.0,0.25845902]
[1755152243200,0.606193,121790.0,121780.0,0.90124312]
[1755152243392,0.606193,121790.0,121780.0,0.98432292]
[1755152243591,0.606193,121790.0,121780.0,1.02382292]
[1755152243787,0.52412,121790.0,121780.0,1.50468984]
[1755152243998,0.3608,121790.0,121780.0,1.50500984]
[1755152245196,0.46308,121790.0,121780.0,0.22110292]
[1755152245397,0.603483,121790.0,121780.0,0.98690292]
[1755152245593,0.52141,121790.0,121780.0,0.98690292]
[1755152245894,0.52141,121790.0,121780.0,1.02402292]
[1755152246504,0.603483,121790.0,121780.0,1.02402292]
[1755152247002,0.52141,121790.0,121780.0,1.02402292]
[1755152247201,0.3608,121790.0,121780.0,1.02402292]
[1755152247596,0.40002,121790.0,121780.0,1.50288984]
[1755152248002,0.3608,121790.0,121780.0,0.73708984]
[1755152248198,0.3608,121800.0,121790.0,0.242413]
[1755152248499,0.3608,121800.0,121790.0,1.49975304]
[1755152248707,0.3608,121800.0,121790.0,0.79313957]
[1755152249006,0.3608,121810.0,121800.0,0.1462563]
[1755152249301,0.6034696,121810.0,121800.0,0.21811942]
[1755152249601,0.6034696,121810.0,121800.0,0.77879312]
[1755152249802,0.2426763,121800.0,121790.0,0.1988923]
[1755152249998,0.6034763,121800.0,121790.0,1.04943538]
[1755152250197,0.6034763,121800.0,121790.0,0.01283308]
[1755152250401,1.19234322,121800.0,121790.0,0.77879308]
[1755152250601,1.08234322,121800.0,121790.0,0.86086618]
[1755152250804,0.6034763,121800.0,121790.0,0.86086618]
[1755152251398,0.6034763,121800.0,121790.0,0.77879308]
[1755152251603,1.08234322,121800.0,121790.0,0.77879308]
[1755152252096,1.08234322,121800.0,121790.0,0.76596]
[1755152252605,0.6034763,121800.0,121790.0,0.8480331]
[1755152253313,0.6034763,121800.0,121790.0,0.86086725]
[1755152253509,0.6034763,121800.0,121790.0,0.01283415]
[1755152253710,0.6034763,121800.0,121790.0,0.77863415]
[1755152254111,0.6034763,121800.0,121790.0,0.86070725]
[1755152254410,0.6034763,121800.0,121790.0,0.89545725]
[1755152255215,0.6034763,121800.0,121790.0,1.02104725]
[1755152256209,0.6034763,121800.0,121790.0,1.02514725]
[1755152258115,0.6034763,121800.0,121790.0,0.25934725]
[1755152258325,0.6034763,121800.0,121790.0,1.02542725]
[1755152258517,0.5230063,121800.0,121790.0,1.02132725]
[1755152258918,0.5813363,121800.0,121790.0,1.02132725]
[1755152259313,0.6034763,121800.0,121790.0,1.02132725]
[1755152259511,0.52141,121800.0,121790.0,1.02132725]
[1755152259914,0.3608,121800.0,121790.0,1.49987417]
[1755152260608,0.3608,121810.0,121790.0,1.66401647]
[1755152260803,0.6034696,121810.0,121800.0,0.2424064]
[1755152261119,0.52141,121810.0,121800.0,0.25524055]
[1755152261819,0.6044697,121810.0,121800.0,0.25524055]
[1755152262020,0.6044697,121810.0,121800.0,0.98388055]
[1755152262217,1.08333662,121810.0,121800.0,0.77855415]
[1755152262421,1.20333662,121810.0,121800.0,0.77855415]
[1755152262716,1.08433662,121810.0,121800.0,0.01283415]
[1755152262917,0.1208131,121790.0,121780.0,0.38352063]
[1755152263123,0.6034831,121790.0,121780.0,0.39635447]
[1755152263308,0.6034831,121790.0,121780.0,0.35923447]
[1755152263613,1.56315002,121790.0,121780.0,0.78245384]
[1755152263820,1.44315002,121790.0,121780.0,0.78245384]
[1755152264012,0.9642831,121790.0,121780.0,0.86489364]
[1755152264212,0.9642831,121790.0,121780.0,0.98811364]
[1755152264414,0.9642831,121790.0,121780.0,1.02523364]
[1755152264816,0.9642831,121790.0,121780.0,0.94315384]
[1755152265312,0.9642831,121790.0,121780.0,0.14115384]
[1755152265520,0.9642831,121790.0,121780.0,0.98935374]
[1755152265719,0.9642831,121790.0,121780.0,1.02747374]
[1755152266718,0.9642831,121790.0,121780.0,0.26135374]
[1755152266915,0.9642831,121790.0,121780.0,1.02735374]
[1755152267220,0.9642831,121790.0,121780.0,0.94527384]
[1755152267517,0.9642831,121790.0,121780.0,0.90815384]
[1755152267718,0.9642831,121790.0,121780.0,1.02735364]
[1755152267919,0.9642831,121790.0,121780.0,0.94527384]
[1755152268224,0.9642831,121790.0,121780.0,0.90815384]
[1755152268414,0.9642831,121790.0,121780.0,0.90405384]
[1755152268614,0.9642831,121790.0,121780.0,0.90815384]
[1755152269116,1.44315002,121790.0,121780.0,0.78453384]
[1755152269314,1.44315002,121790.0,121780.0,0.78043384]
[1755152269713,1.44315002,121790.0,121780.0,0.78453384]
[1755152270024,1.54315002,121790.0,121780.0,0.78453384]
[1755152270517,1.54315002,121790.0,121780.0,0.01893384]
[1755152270716,2.67437402,121790.0,121780.0,0.0061]
[1755152270914,2.67437402,121790.0,121760.0,0.002]
[1755152270915,0.2426966,121770.0,121760.0,0.002]
[1755152271126,1.44316352,121770.0,121760.0,0.76892]
[1755152271716,1.54316352,121770.0,121760.0,0.76892]
[1755152272025,1.54316352,121770.0,121760.0,0.78175738]
[1755152272026,1.44316352,121770.0,121760.0,0.78175738]
[1755152272222,1.44316352,121770.0,121760.0,0.01583738]
[1755152272417,1.72741152,121770.0,121760.0,0.01583738]
[1755152272723,1.75281415,121770.0,121760.0,0.01583738]
[1755152273022,2.51949415,121770.0,121760.0,0.01683738]
[1755152274221,2.51949415,121770.0,121760.0,0.01583738]
[1755152274423,2.52349415,121770.0,121760.0,0.01583738]
[1755152275425,2.52649415,121770.0,121760.0,0.01483893]
[1755152275623,2.36180615,121770.0,121760.0,0.01483893]
[1755152276019,2.35880615,121770.0,121760.0,0.01483893]
[1755152276316,2.36180615,121770.0,121760.0,0.01483893]
[1755152277617,1.59556615,121770.0,121760.0,0.01483893]
[1755152277816,0.2382633,121760.0,121750.0,0.002]
[1755152278014,1.19793022,121760.0,121750.0,0.002]
[1755152278214,1.36219423,121760.0,121750.0,0.002]
[1755152279523,1.36419423,121760.0,121750.0,0.002]
[1755152279819,1.19993022,121760.0,121750.0,0.0841001]